[Event "Asian Amateur Rapid 2024"]
[Site "Al Ain"]
[Date "2024.12.15"]
[Round "5.31"]
[White "Alymjanov, Mekan"]
[Black "Kanev, Evgeny"]
[Result "0-1"]
[ECO "E73"]
[WhiteElo "1480"]
[BlackElo "1785"]
[Annotator "NA COMBH"]
[PlyCount "124"]
[EventDate "2024.12.15"]
[EventType "swiss"]
[EventCountry "UAE"]
[SourceTitle "playchess.com"]
[Source "ChessBase"]
[SourceQuality "1"]
[TimeControl "900+10"]

1. d4 {[%emt 0:00:02]} Nf6 {[%emt 0:00:01]} 2. c4 {[%emt 0:00:01]} g6 {[%emt 0:00:01]} 3. Nc3 {[%emt 0:00:01]} Bg7 {[%emt 0:00:01]} 4. e4 {[%emt 0:00:01]} d6 {[%emt 0:00:01]} 5. Be2 {[%emt 0:00:08]} O-O {[%emt 0:00:02]} 6. Be3 {[%emt 0:00:02]} e5 {[%emt 0:00:54]} 7. d5 {[%emt 0:00:02]} Ne8 {[%emt 0:00:31]} 8. g4 {[%emt 0:00:04]} f5 {[%emt 0:00:13]} 9. gxf5 {[%emt 0:00:29]} gxf5 {[%emt 0:00:01]} 10. exf5 {[%emt 0:00:06]} Bxf5 {[%emt 0:00:03]} 11. Qd2 {[%emt 0:00:08]} Nd7 {[%emt 0:00:38]} 12. h4 {[%emt 0:00:08]} Ndf6 {[%emt 0:00:56]} 13. h5 {[%emt 0:00:49]} Ng4 {[%emt 0:00:31]} 14. h6 {[%emt 0:00:01]} Bf6 {[%emt 0:00:27]} 15. Rh5 {[%emt 0:01:01]} Nxe3 {[%emt 0:00:37]} 16. Qxe3 {[%emt 0:00:37]} Bg6 {[%emt 0:00:18]} 17. Qg3 {[%emt 0:00:39]} Kh8 {[%emt 0:00:16]} 18. Rh2 {[%emt 0:00:49]} e4 {[%emt 0:02:33]} 19. Nh3 {[%emt 0:00:22]} Be5 {[%emt 0:00:10]} 20. Qg2 {[%emt 0:00:51]} Qf6 {[%emt 0:01:25]} 21. Rc1 {[%emt 0:02:16]} Bxh2 {[%emt 0:00:19]} 22. Qxh2 {[%emt 0:00:44]} Qf5 {[%emt 0:01:16]} 23. Qg2 {[%emt 0:00:46]} Nf6 {[%emt 0:00:25]} 24. Ng5 {[%emt 0:00:55]} Rae8 {[%emt 0:02:21]} 25. Nb5 {[%emt 0:00:43]} Re7 {[%emt 0:02:50]} 26. Rc3 {[%emt 0:00:20]} Nh5 {[%emt 0:00:59]} 27. Nd4 {[%emt 0:02:02]} Nf4 {[%emt 0:00:26]} 28. Qg3 {[%emt 0:01:33]} Qe5 {[%emt 0:00:07]} 29. Nge6 {[%emt 0:00:17]} Nxe2 {[%emt 0:00:59]} 30. Kxe2 {[%emt 0:00:01]} Qxg3 {[%emt 0:00:12]} 31. Rxg3 {[%emt 0:00:02]} Rff7 {[%emt 0:00:08]} 32. Nb5 {[%emt 0:00:04]} a6 {[%emt 0:00:02]} 33. Nc3 {[%emt 0:00:26]} c6 {[%emt 0:00:32]} 34. Re3 {[%emt 0:00:01]} Rxe6 {[%emt 0:00:03]} 35. dxe6 {[%emt 0:00:01]} Re7 {[%emt 0:00:01]} 36. Nxe4 {[%emt 0:00:03]} Rxe6 {[%emt 0:00:03]} 37. Ng5 {[%emt 0:01:07]} Rxe3+ {[%emt 0:00:02]} 38. Kxe3 {[%emt 0:00:02]} Kg8 {[%emt 0:00:02]} 39. Ne6 {[%emt 0:00:04]} Bf5 {[%emt 0:00:13]} 40. Nd8 {[%emt 0:00:06]} Bc8 {[%emt 0:00:01]} 41. f4 {[%emt 0:00:10]} Kf8 {[%emt 0:00:01]} 42. f5 {[%emt 0:00:01]} Ke7 {[%emt 0:00:01]} 43. Kf4 {[%emt 0:00:05]} Kxd8 {[%emt 0:00:05]} 44. Kg5 {[%emt 0:00:04]} Ke7 {[%emt 0:00:03]} 45. a3 {[%emt 0:00:07]} d5 {[%emt 0:00:17]} 46. c5 {[%emt 0:00:07]} d4 {[%emt 0:00:02]} 47. Kf4 {[%emt 0:00:01]} Kf6 {[%emt 0:00:01]} 48. Ke4 {[%emt 0:00:02]} d3 {[%emt 0:00:03]} 49. Kxd3 {[%emt 0:00:01]} Bxf5+ {[%emt 0:00:04]} 50. Ke3 {[%emt 0:00:02]} Ke5 {[%emt 0:00:05]} 51. Ke2 {[%emt 0:00:09]} Kd4 {[%emt 0:00:01]} 52. Kd2 {[%emt 0:00:01]} Kxc5 {[%emt 0:00:01]} 53. Kc3 {[%emt 0:00:04]} a5 {[%emt 0:00:09]} 54. Kb3 {[%emt 0:00:16]} b5 {[%emt 0:00:03]} 55. Kc3 {[%emt 0:00:30]} a4 {[%emt 0:00:17]} 56. Kd2 {[%emt 0:00:17]} Kc4 {[%emt 0:00:00]} 57. Ke3 {[%emt 0:00:45]} Bg6 {[%emt 0:00:04]} 58. Kf4 {[%emt 0:00:20]} Kb3 {[%emt 0:00:01]} 59. Ke5 {[%emt 0:00:01]} Kxb2 {[%emt 0:00:02]} 60. Kd6 {[%emt 0:00:15]} Kxa3 {[%emt 0:00:02]} 61. Kxc6 {[%emt 0:00:01]} Kb2 {[%emt 0:00:01]} 62. Kxb5 {[%emt 0:00:02] Check Result:-#9} a3 {[%emt 0:00:00]} 0-1

[Event "Asian Amateur Rapid 2024"]
[Site "Al Ain"]
[Date "2024.12.15"]
[Round "5.32"]
[White "taleb al, ameri"]
[Black "Obado, Sean Adrich"]
[Result "0-1"]
[ECO "B22"]
[WhiteElo "1623"]
[BlackElo "1605"]
[Annotator "NA COMBH"]
[PlyCount "102"]
[EventDate "2024.12.15"]
[EventType "swiss"]
[EventCountry "UAE"]
[SourceTitle "playchess.com"]
[Source "ChessBase"]
[SourceQuality "1"]
[TimeControl "900+10"]

1. e4 {[%emt 0:00:02]} c5 {[%emt 0:00:01]} 2. c3 {[%emt 0:00:04]} Nf6 {[%emt 0:00:03]} 3. e5 {[%emt 0:00:28]} Nd5 {[%emt 0:00:02]} 4. c4 {[%emt 0:00:02]} Nb6 {[%emt 0:00:04]} 5. f4 {[%emt 0:00:13]} d6 {[%emt 0:00:03]} 6. Nf3 {[%emt 0:00:03]} Bf5 {[%emt 0:00:13]} 7. Nc3 {[%emt 0:00:17]} Nc6 {[%emt 0:00:20]} 8. d3 {[%emt 0:00:23]} e6 {[%emt 0:00:25]} 9. Be2 {[%emt 0:00:12]} dxe5 {[%emt 0:00:25]} 10. fxe5 {[%emt 0:00:03]} Be7 {[%emt 0:00:04]} 11. O-O {[%emt 0:00:06]} O-O {[%emt 0:00:09]} 12. a3 {[%emt 0:01:01]} Nxe5 {[%emt 0:00:08]} 13. Nxe5 {[%emt 0:01:00]} Qd4+ {[%emt 0:00:03]} 14. Kh1 {[%emt 0:00:05]} Qxe5 {[%emt 0:00:02]} 15. Bf4 {[%emt 0:00:10]} Qd4 {[%emt 0:00:15]} 16. Rb1 {[%emt 0:00:48]} Rfd8 {[%emt 0:00:43]} 17. Nb5 {[%emt 0:00:06]} Qd7 {[%emt 0:00:09]} 18. Bc7 {[%emt 0:01:28]} Rdc8 {[%emt 0:00:24]} 19. Be5 {[%emt 0:00:03]} a6 {[%emt 0:00:23]} 20. Nc3 {[%emt 0:00:05]} Rd8 {[%emt 0:00:04]} 21. Ne4 {[%emt 0:00:30]} Nxc4 {[%emt 0:00:28]} 22. dxc4 {[%emt 0:02:42]} Bxe4 {[%emt 0:00:16]} 23. Qe1 {[%emt 0:00:15]} Bxb1 {[%emt 0:00:03]} 24. Qxb1 {[%emt 0:00:02]} Qd2 {[%emt 0:00:19]} 25. Bh5 {[%emt 0:00:17]} Rf8 {[%emt 0:00:45]} 26. Bc3 {[%emt 0:00:29]} Qh6 {[%emt 0:00:30]} 27. Bf3 {[%emt 0:00:20]} Bd6 {[%emt 0:00:07]} 28. h3 {[%emt 0:02:50]} Qf4 {[%emt 0:00:07]} 29. Kg1 {[%emt 0:00:02]} Qh2+ {[%emt 0:00:01]} 30. Kf2 {[%emt 0:00:02]} Bg3+ {[%emt 0:00:01]} 31. Ke2 {[%emt 0:00:13]} Be5 {[%emt 0:00:15]} 32. Rh1 {[%emt 0:00:09]} Qf4 {[%emt 0:00:08]} 33. g3 {[%emt 0:00:23]} Qf6 {[%emt 0:00:24]} 34. Be4 {[%emt 0:01:27]} Bxc3 {[%emt 0:00:19]} 35. Bxh7+ {[%emt 0:01:03]} Kh8 {[%emt 0:00:03]} 36. bxc3 {[%emt 0:00:01]} Qe5+ {[%emt 0:00:02]} 37. Be4 {[%emt 0:00:07]} f5 {[%emt 0:00:02]} 38. Qxb7 {[%emt 0:01:06]} Qxe4+ {[%emt 0:00:29]} 39. Qxe4 {[%emt 0:00:03]} fxe4 {[%emt 0:00:00]} 40. Ke3 {[%emt 0:00:03]} Rf3+ {[%emt 0:00:03]} 41. Kxe4 {[%emt 0:00:02]} Rxc3 {[%emt 0:00:05]} 42. g4 {[%emt 0:00:04]} Rxc4+ {[%emt 0:00:06]} 43. Ke5 {[%emt 0:00:02]} Rc3 {[%emt 0:00:03]} 44. g5 {[%emt 0:00:14]} Rxa3 {[%emt 0:00:31]} 45. h4 {[%emt 0:00:02]} Rd8 {[%emt 0:00:11]} 46. h5 {[%emt 0:00:12]} Rd5+ {[%emt 0:00:13]} 47. Kxe6 {[%emt 0:00:03]} Rxg5 {[%emt 0:00:02]} 48. h6 {[%emt 0:00:04]} Rg6+ {[%emt 0:00:08]} 49. Kf7 {[%emt 0:00:03]} Rf6+ {[%emt 0:00:02]} 50. Ke7 {[%emt 0:00:01]} Re3+ {[%emt 0:00:01]} 51. Kd7 {[%emt 0:00:03] Check Result:-#13} gxh6 {[%emt 0:00:06]} 0-1

[Event "Asian Amateur Rapid 2024"]
[Site "Al Ain"]
[Date "2024.12.15"]
[Round "5.33"]
[White "Olimjonov, Muhammadziyo"]
[Black "Kalikhan, Abilmansur"]
[Result "1-0"]
[ECO "D02"]
[WhiteElo "1505"]
[BlackElo "1731"]
[Annotator "NA COMBH"]
[PlyCount "117"]
[EventDate "2024.12.15"]
[EventType "swiss"]
[EventCountry "UAE"]
[SourceTitle "playchess.com"]
[Source "ChessBase"]
[SourceQuality "1"]
[TimeControl "900+10"]

1. c4 {[%emt 0:00:03]} Nf6 {[%emt 0:00:01]} 2. g3 {[%emt 0:00:01]} c6 {[%emt 0:00:06]} 3. Bg2 {[%emt 0:00:02]} d5 {[%emt 0:00:01]} 4. cxd5 {[%emt 0:00:02]} cxd5 {[%emt 0:00:00]} 5. d4 {[%emt 0:00:01]} Nc6 {[%emt 0:00:02]} 6. Nc3 {[%emt 0:00:01]} a6 {[%emt 0:00:01]} 7. Nf3 {[%emt 0:00:02]} e6 {[%emt 0:00:13]} 8. O-O {[%emt 0:00:03]} Bd6 {[%emt 0:00:01]} 9. Bg5 {[%emt 0:00:02]} Be7 {[%emt 0:00:02]} 10. Bf4 {[%emt 0:00:02]} h6 {[%emt 0:00:20]} 11. Ne5 {[%emt 0:00:08]} Bd6 {[%emt 0:00:17]} 12. Nxc6 {[%emt 0:00:03]} bxc6 {[%emt 0:00:01]} 13. Bxd6 {[%emt 0:00:04]} Qxd6 {[%emt 0:00:01]} 14. Re1 {[%emt 0:00:03]} Bb7 {[%emt 0:00:11]} 15. Na4 {[%emt 0:00:02]} Nd7 {[%emt 0:00:16]} 16. Rc1 {[%emt 0:00:03]} Rc8 {[%emt 0:00:14]} 17. Nc5 {[%emt 0:00:09]} Nxc5 {[%emt 0:00:03]} 18. Rxc5 {[%emt 0:00:07]} O-O {[%emt 0:00:08]} 19. Qb3 {[%emt 0:00:12]} Rb8 {[%emt 0:00:03]} 20. Rec1 {[%emt 0:00:05]} Rfc8 {[%emt 0:00:03]} 21. Qa4 {[%emt 0:00:04]} e5 {[%emt 0:00:54]} 22. Bh3 {[%emt 0:00:19]} Re8 {[%emt 0:00:23]} 23. e3 {[%emt 0:00:12]} exd4 {[%emt 0:00:06]} 24. Qxd4 {[%emt 0:00:05]} Re4 {[%emt 0:00:10]} 25. Qd3 {[%emt 0:00:14]} Rb4 {[%emt 0:01:23]} 26. R1c2 {[%emt 0:00:25]} Rb5 {[%emt 0:00:09]} 27. R5c3 {[%emt 0:00:26]} c5 {[%emt 0:01:25]} 28. b3 {[%emt 0:00:40]} d4 {[%emt 0:01:35]} 29. exd4 {[%emt 0:00:09]} cxd4 {[%emt 0:00:01]} 30. Rc4 {[%emt 0:00:03]} Qd5 {[%emt 0:00:29]} 31. f3 {[%emt 0:00:16]} Rd8 {[%emt 0:01:14]} 32. Bg2 {[%emt 0:00:14]} Qe5 {[%emt 0:00:13]} 33. Re2 {[%emt 0:00:06]} Qf6 {[%emt 0:00:46]} 34. Rd2 {[%emt 0:00:49]} Ra5 {[%emt 0:04:50]} 35. a4 {[%emt 0:01:07]} Rf5 {[%emt 0:00:44]} 36. Kf2 {[%emt 0:00:26]} g5 {[%emt 0:00:17]} 37. Rc7 {[%emt 0:00:38]} Bxf3 {[%emt 0:00:24]} 38. Bxf3 {[%emt 0:00:16]} g4 {[%emt 0:00:01]} 39. Kg2 {[%emt 0:00:58]} Rxf3 {[%emt 0:00:38]} 40. Qe4 {[%emt 0:00:13]} h5 {[%emt 0:01:01]} 41. Rc6 {[%emt 0:00:05]} Qg7 {[%emt 0:01:04]} 42. b4 {[%emt 0:00:35]} Re3 {[%emt 0:00:08]} 43. Qf4 {[%emt 0:01:10]} Rde8 {[%emt 0:00:51]} 44. Rxa6 {[%emt 0:01:09]} d3 {[%emt 0:00:19]} 45. Ra8 {[%emt 0:00:31]} Qc3 {[%emt 0:01:11]} 46. Qg5+ {[%emt 0:00:50]} Qg7 {[%emt 0:00:16]} 47. Qxg7+ {[%emt 0:00:54]} Kxg7 {[%emt 0:00:01]} 48. Rxe8 {[%emt 0:00:02]} Re6 {[%emt 0:00:33]} 49. Re7 Rxe7 {[%emt 0:00:00]} 50. Rxd3 {[%emt 0:00:10]} Re2+ {[%emt 0:00:00]} 51. Kg1 {[%emt 0:00:03]} Rb2 {[%emt 0:00:00]} 52. b5 {[%emt 0:00:13]} Rb1+ {[%emt 0:00:12]} 53. Kf2 {[%emt 0:00:02]} Rb2+ {[%emt 0:00:01]} 54. Ke3 {[%emt 0:00:02]} Rxh2 {[%emt 0:00:06]} 55. b6 {[%emt 0:00:05]} Rb2 {[%emt 0:00:24]} 56. a5 {[%emt 0:00:01]} Rb5 {[%emt 0:00:10]} 57. Ra3 {[%emt 0:00:03]} h4 {[%emt 0:00:18]} 58. gxh4 {[%emt 0:00:06]} g3 {[%emt 0:00:03] Check Result:#22} 59. Kf3 {[%emt 0:00:03]} 1-0

[Event "Asian Amateur Rapid 2024"]
[Site "Al Ain"]
[Date "2024.12.15"]
[Round "5.34"]
[White "Al Mamari, Said Ahmed"]
[Black "Godhani Maharth"]
[Result "1-0"]
[ECO "C47"]
[WhiteElo "1707"]
[BlackElo "1798"]
[Annotator "NA COMBH"]
[PlyCount "39"]
[EventDate "2024.12.15"]
[EventType "swiss"]
[EventCountry "UAE"]
[SourceTitle "playchess.com"]
[Source "ChessBase"]
[SourceQuality "1"]
[TimeControl "900+10"]

1. e4 {[%emt 0:00:01]} e5 {[%emt 0:00:00]} 2. Nf3 {[%emt 0:00:02]} Nc6 {[%emt 0:00:02]} 3. Nc3 {[%emt 0:00:02]} Nf6 {[%emt 0:00:02]} 4. a3 {[%emt 0:00:01]} d5 {[%emt 0:00:02]} 5. Bb5 {[%emt 0:00:03]} Bg4 {[%emt 0:00:06]} 6. exd5 {[%emt 0:00:31]} Nxd5 {[%emt 0:00:03]} 7. Qe2 {[%emt 0:00:05]} f6 {[%emt 0:00:44]} 8. h3 {[%emt 0:00:14]} Nxc3 {[%emt 0:00:05]} 9. dxc3 {[%emt 0:00:06]} Bd7 {[%emt 0:00:08]} 10. Be3 {[%emt 0:00:05]} Bd6 {[%emt 0:00:03]} 11. Bc4 {[%emt 0:00:05]} Qe7 {[%emt 0:00:03]} 12. O-O-O {[%emt 0:00:04]} O-O-O {[%emt 0:00:03]} 13. Rhe1 {[%emt 0:00:14]} Bf5 {[%emt 0:00:03]} 14. Bd5 {[%emt 0:00:24]} Bxa3 {[%emt 0:00:29]} 15. Bxc6 {[%emt 0:00:21]} bxc6 {[%emt 0:00:04]} 16. Qa6+ {[%emt 0:00:02]} Kb8 {[%emt 0:00:06]} 17. Bxa7+ {[%emt 0:00:03]} Ka8 {[%emt 0:00:03]} 18. Bb6+ {[%emt 0:00:02]} Kb8 {[%emt 0:00:03]} 19. Qa7+ {[%emt 0:00:11]} Kc8 {[%emt 0:00:02] Check Result:?ev?} 20. Qa8# {[%emt 0:00:02]} 1-0

[Event "Asian Amateur Rapid 2024"]
[Site "Al Ain"]
[Date "2024.12.15"]
[Round "5.35"]
[White "Alajati, Abdl Alrahman."]
[Black "nawaf saleh basabaien"]
[Result "0-1"]
[ECO "C41"]
[WhiteElo "1555"]
[BlackElo "1729"]
[Annotator "NA COMBH"]
[PlyCount "126"]
[EventDate "2024.12.15"]
[EventType "swiss"]
[EventCountry "UAE"]
[SourceTitle "playchess.com"]
[Source "ChessBase"]
[SourceQuality "1"]
[TimeControl "900+10"]

1. e4 {[%emt 0:00:04]} d6 {[%emt 0:00:01]} 2. d4 {[%emt 0:00:03]} Nf6 {[%emt 0:00:01]} 3. Nc3 {[%emt 0:00:04]} Nbd7 {[%emt 0:00:01]} 4. Nf3 {[%emt 0:00:04]} e5 {[%emt 0:00:01]} 5. dxe5 {[%emt 0:00:20]} dxe5 {[%emt 0:00:01]} 6. Bc4 {[%emt 0:00:04]} Be7 {[%emt 0:00:03]} 7. Bxf7+ {[%emt 0:01:20]} Kxf7 {[%emt 0:00:02]} 8. Ng5+ {[%emt 0:00:09]} Kg8 {[%emt 0:00:03]} 9. Ne6 {[%emt 0:00:38]} Qe8 {[%emt 0:00:03]} 10. Nxc7 {[%emt 0:00:05]} Qg6 {[%emt 0:00:04]} 11. Nxa8 {[%emt 0:01:31]} Qxg2 {[%emt 0:00:04]} 12. Rf1 {[%emt 0:00:13]} Nc5 {[%emt 0:00:45]} 13. Be3 {[%emt 0:00:40]} Bh3 {[%emt 0:00:27]} 14. Qe2 {[%emt 0:02:02]} Qxf1+ {[%emt 0:00:29]} 15. Qxf1 {[%emt 0:00:04]} Bxf1 {[%emt 0:00:03]} 16. Kxf1 {[%emt 0:00:06]} Ncxe4 {[%emt 0:00:54]} 17. Nxe4 {[%emt 0:01:01]} Nxe4 {[%emt 0:00:02]} 18. Bxa7 {[%emt 0:00:34]} Kf7 {[%emt 0:00:30]} 19. Nc7 {[%emt 0:00:13]} Rc8 {[%emt 0:03:18]} 20. Nd5 {[%emt 0:00:14]} Rxc2 {[%emt 0:00:17]} 21. Nxe7 {[%emt 0:01:37]} Kxe7 {[%emt 0:00:25]} 22. b4 {[%emt 0:01:17]} Ke6 {[%emt 0:00:54]} 23. Be3 {[%emt 0:00:24]} Nc3 {[%emt 0:00:54]} 24. a3 {[%emt 0:00:50]} Ra2 {[%emt 0:01:27]} 25. Rxa2 {[%emt 0:00:07]} Nxa2 {[%emt 0:00:02]} 26. Bd2 {[%emt 0:00:03]} Kd5 {[%emt 0:00:02]} 27. Ke2 {[%emt 0:00:12]} Kc4 {[%emt 0:00:02]} 28. Ke3 {[%emt 0:01:16]} Kb3 {[%emt 0:00:57]} 29. Kd3 {[%emt 0:00:30]} Kxa3 {[%emt 0:00:06]} 30. Kc4 {[%emt 0:00:06]} Ka4 {[%emt 0:00:33]} 31. b5 {[%emt 0:00:09]} b6 {[%emt 0:01:49]} 32. Be3 {[%emt 0:00:13]} Ka5 {[%emt 0:00:48]} 33. Kb3 {[%emt 0:00:15]} Nb4 {[%emt 0:00:02]} 34. Bd2 {[%emt 0:00:01]} Kxb5 {[%emt 0:00:07]} 35. Bxb4 {[%emt 0:00:02]} Kc6 {[%emt 0:00:13]} 36. Bc3 {[%emt 0:00:10]} Kd5 {[%emt 0:00:07]} 37. Kb4 {[%emt 0:00:03]} g5 {[%emt 0:00:09]} 38. Bd2 {[%emt 0:00:24]} g4 {[%emt 0:00:22]} 39. Kb5 {[%emt 0:00:02]} Ke4 {[%emt 0:00:10]} 40. Be3 {[%emt 0:00:19]} Kf3 {[%emt 0:00:11]} 41. Kxb6 {[%emt 0:01:04]} Kg2 {[%emt 0:00:01]} 42. Kc5 {[%emt 0:00:06]} Kxh2 {[%emt 0:00:04]} 43. Kd5 {[%emt 0:00:25]} g3 {[%emt 0:00:09]} 44. f3 {[%emt 0:00:10]} Kg2 {[%emt 0:00:13]} 45. Ke4 {[%emt 0:00:21]} h5 {[%emt 0:00:06]} 46. Bg5 {[%emt 0:00:42]} Kf1 {[%emt 0:00:44]} 47. Kxe5 {[%emt 0:00:42]} Ke2 {[%emt 0:01:26]} 48. Ke4 {[%emt 0:00:22]} h4 {[%emt 0:00:58]} 49. Bf4 {[%emt 0:01:34]} g2 {[%emt 0:00:14]} 50. Bh2 {[%emt 0:00:08]} Kf2 {[%emt 0:02:22]} 51. f4 {[%emt 0:00:21]} g1=Q {[%emt 0:00:23]} 52. Bxg1+ {[%emt 0:00:06]} Kxg1 {[%emt 0:00:01]} 53. f5 {[%emt 0:00:04]} h3 {[%emt 0:00:01]} 54. f6 {[%emt 0:00:02]} h2 {[%emt 0:00:01]} 55. f7 {[%emt 0:00:13]} h1=Q+ {[%emt 0:01:08]} 56. Ke5 {[%emt 0:00:01]} Qh8+ {[%emt 0:00:00]} 57. Ke6 {[%emt 0:00:03]} Qf8 {[%emt 0:00:00]} 58. Kf6 {[%emt 0:00:02]} Kg2 {[%emt 0:00:00]} 59. Ke6 {[%emt 0:00:01]} Kh3 {[%emt 0:00:00]} 60. Kf6 {[%emt 0:00:01]} Kh4 {[%emt 0:00:00]} 61. Kg6 {[%emt 0:00:03]} Kg4 {[%emt 0:00:00]} 62. Kf6 {[%emt 0:00:02]} Kh5 {[%emt 0:00:00]} 63. Ke6 {[%emt 0:00:02] Check Result:-#9} Kg6 {[%emt 0:00:00]} 0-1

[Event "Asian Amateur Rapid 2024"]
[Site "Al Ain"]
[Date "2024.12.15"]
[Round "5.37"]
[White "Lee, Onbin"]
[Black "Sharfa, Farukh"]
[Result "0-1"]
[ECO "B12"]
[WhiteElo "1686"]
[BlackElo "1536"]
[Annotator "NA COMBH"]
[PlyCount "89"]
[EventDate "2024.12.15"]
[EventType "swiss"]
[EventCountry "UAE"]
[SourceTitle "playchess.com"]
[Source "ChessBase"]
[SourceQuality "1"]
[TimeControl "900+10"]

1. e4 {[%emt 0:00:02]} c6 {[%emt 0:00:01]} 2. d4 {[%emt 0:00:04]} d5 {[%emt 0:00:01]} 3. e5 {[%emt 0:00:02]} c5 {[%emt 0:00:03]} 4. Nf3 {[%emt 0:00:06]} Bg4 {[%emt 0:00:01]} 5. Bb5+ {[%emt 0:01:42]} Nc6 {[%emt 0:00:05]} 6. dxc5 {[%emt 0:00:08]} e6 {[%emt 0:00:42]} 7. b4 {[%emt 0:00:07]} Nge7 {[%emt 0:01:02]} 8. O-O {[%emt 0:00:19]} Nf5 {[%emt 0:00:11]} 9. h3 {[%emt 0:02:56]} Bxf3 {[%emt 0:00:09]} 10. Qxf3 {[%emt 0:00:02]} Nfd4 {[%emt 0:02:06]} 11. Bxc6+ {[%emt 0:00:03]} Nxc6 {[%emt 0:00:02]} 12. Qc3 {[%emt 0:00:55]} Qc7 {[%emt 0:01:09]} 13. f4 {[%emt 0:01:29]} Be7 {[%emt 0:00:26]} 14. Nd2 {[%emt 0:00:51]} O-O {[%emt 0:00:42]} 15. Nf3 {[%emt 0:01:06]} Nxb4 {[%emt 0:00:15]} 16. Be3 {[%emt 0:00:36]} Na6 {[%emt 0:00:39]} 17. Rab1 {[%emt 0:01:57]} Rab8 {[%emt 0:00:11]} 18. Nd4 {[%emt 0:01:04]} Bxc5 {[%emt 0:00:57]} 19. Nb5 {[%emt 0:00:13]} Bxe3+ {[%emt 0:00:08]} 20. Qxe3 {[%emt 0:00:02]} Qc5 {[%emt 0:01:26]} 21. Qxc5 {[%emt 0:00:02]} Nxc5 {[%emt 0:00:01]} 22. Nxa7 {[%emt 0:01:28]} Ne4 {[%emt 0:00:13]} 23. Rfe1 {[%emt 0:00:51]} Rfd8 {[%emt 0:01:16]} 24. Nb5 {[%emt 0:00:44]} Rdc8 {[%emt 0:00:16]} 25. Nd6 {[%emt 0:01:18]} Nxd6 {[%emt 0:00:17]} 26. exd6 {[%emt 0:00:03]} Rc6 {[%emt 0:00:04]} 27. c4 {[%emt 0:00:32]} Rxd6 {[%emt 0:00:29]} 28. cxd5 {[%emt 0:00:11]} Rxd5 {[%emt 0:00:04]} 29. Rb6 {[%emt 0:00:31]} g6 {[%emt 0:00:09]} 30. Reb1 {[%emt 0:00:09]} Rd7 {[%emt 0:00:02]} 31. a4 {[%emt 0:00:01]} Ra8 {[%emt 0:00:09]} 32. R1b4 {[%emt 0:00:34]} Ra7 {[%emt 0:00:02]} 33. Kf2 {[%emt 0:00:09]} Kg7 {[%emt 0:00:02]} 34. Ke3 {[%emt 0:00:08]} Kf6 {[%emt 0:00:07]} 35. g4 {[%emt 0:00:02]} h6 {[%emt 0:00:02]} 36. h4 {[%emt 0:00:05]} Rc7 {[%emt 0:00:19]} 37. g5+ {[%emt 0:00:11]} hxg5 {[%emt 0:00:02]} 38. hxg5+ {[%emt 0:00:03]} Kg7 {[%emt 0:00:03]} 39. Ke4 {[%emt 0:00:06]} Kf8 {[%emt 0:00:09]} 40. Ke5 {[%emt 0:00:16]} Ke7 {[%emt 0:00:00]} 41. Kd4 {[%emt 0:00:11]} Rd7+ {[%emt 0:00:32]} 42. Kc4 {[%emt 0:00:13]} Kd8 {[%emt 0:00:12]} 43. R6b5 {[%emt 0:00:24]} Kc8 {[%emt 0:00:09]} 44. Rc5+ {[%emt 0:00:34]} Rc7 {-0.25} 45. Kd4 {[%emt 0:00:10]} 0-1

[Event "Asian Amateur Rapid 2024"]
[Site "Al Ain"]
[Date "2024.12.15"]
[Round "5.38"]
[White "Mohammed Saeed Alshamsi"]
[Black "Abdulla Younes Alkhemeiri"]
[Result "0-1"]
[ECO "D11"]
[WhiteElo "1535"]
[BlackElo "1547"]
[Annotator "NA COMBH"]
[PlyCount "52"]
[EventDate "2024.12.15"]
[EventType "swiss"]
[EventCountry "UAE"]
[SourceTitle "playchess.com"]
[Source "ChessBase"]
[SourceQuality "1"]
[TimeControl "900+10"]

1. d4 {[%emt 0:00:12]} Nf6 {[%emt 0:00:01]} 2. c4 {[%emt 0:00:02]} g6 {[%emt 0:00:06]} 3. Nf3 {[%emt 0:00:03]} Bg7 {[%emt 0:00:09]} 4. g3 {[%emt 0:00:02]} c6 {[%emt 0:00:02]} 5. Bg2 {[%emt 0:00:02]} d5 {[%emt 0:00:01]} 6. Qc2 {[%emt 0:00:01]} Bf5 {[%emt 0:00:13]} 7. Qb3 {[%emt 0:00:08]} Qc8 {[%emt 0:00:38]} 8. O-O {[%emt 0:00:11]} O-O {[%emt 0:00:03]} 9. Nc3 {[%emt 0:00:07]} dxc4 {[%emt 0:00:16]} 10. Qxc4 {[%emt 0:00:02]} Nbd7 {[%emt 0:00:02]} 11. Re1 {[%emt 0:00:08]} Nb6 {[%emt 0:00:04]} 12. Qb3 {[%emt 0:00:01]} Bh3 {[%emt 0:00:30]} 13. Bh1 {[%emt 0:00:19]} h6 {[%emt 0:00:15]} 14. e4 {[%emt 0:00:20]} Ng4 {[%emt 0:00:58]} 15. e5 {[%emt 0:00:29]} Rd8 {[%emt 0:01:15]} 16. Qc2 {[%emt 0:01:25]} Qd7 {[%emt 0:01:21]} 17. e6 {[%emt 0:00:10]} Qe8 {[%emt 0:00:34]} 18. exf7+ {[%emt 0:00:37]} Qxf7 {[%emt 0:00:04]} 19. Qe4 {[%emt 0:00:17]} Bxd4 {[%emt 0:00:28]} 20. Re2 {[%emt 0:00:24]} Bxc3 {[%emt 0:02:06]} 21. bxc3 {[%emt 0:00:03]} Rd1+ {[%emt 0:00:35]} 22. Re1 {[%emt 0:00:01]} Rxe1+ {[%emt 0:00:33]} 23. Qxe1 {[%emt 0:00:04]} Rf8 {[%emt 0:00:23]} 24. Ba3 {[%emt 0:00:15]} Nc4 {[%emt 0:00:50]} 25. Qxe7 {[%emt 0:00:21]} Nxa3 {[%emt 0:00:13]} 26. Qxa3 {[%emt 0:00:04] Check Result:-3.77} Ne5 {[%emt 0:07:50]} 0-1

[Event "Asian Amateur Rapid 2024"]
[Site "Al Ain"]
[Date "2024.12.15"]
[Round "5.40"]
[White "Sinno, Abdul Salam"]
[Black "Al Riyami, Saeed"]
[Result "*"]
[ECO "D00"]
[WhiteElo "1527"]
[BlackElo "1426"]
[Annotator "NA COMBH"]
[PlyCount "39"]
[EventDate "2024.12.15"]
[EventType "swiss"]
[EventCountry "UAE"]
[SourceTitle "playchess.com"]
[Source "ChessBase"]
[SourceQuality "1"]
[TimeControl "900+10"]

1. d4 {[%emt 0:00:01]} d5 {[%emt 0:00:12]} 2. Bf4 {[%emt 0:00:03]} Nf6 {[%emt 0:00:04]} 3. e3 {[%emt 0:00:02]} Bf5 {[%emt 0:00:07]} 4. c4 {[%emt 0:00:05]} e6 {[%emt 0:00:09]} 5. Qb3 {[%emt 0:00:05]} c5 {[%emt 0:00:20]} 6. Qxb7 {[%emt 0:00:13]} Qa5+ {[%emt 0:00:08]} 7. Nd2 {[%emt 0:00:19]} Ne4 {[%emt 0:15:20]} 8. Ngf3 {[%emt 0:00:08]} Bg4 {[%emt 0:00:00]} 9. Rd1 {[%emt 0:00:28]} Nxd2 {[%emt 0:00:00]} 10. Rxd2 {[%emt 0:00:20]} Bxf3 {[%emt 0:00:00]} 11. gxf3 {[%emt 0:00:03]} Qxa2 {[%emt 0:00:00]} 12. Qxa8 {[%emt 0:00:17]} cxd4 {[%emt 0:00:00]} 13. Qxb8+ {[%emt 0:00:05]} Ke7 {[%emt 0:00:00]} 14. exd4 {[%emt 0:00:15]} Qxc4 {[%emt 0:00:00]} 15. Bxc4 {[%emt 0:00:02]} dxc4 {[%emt 0:00:00]} 16. d5 {[%emt 0:00:09]} a5 {[%emt 0:00:00]} 17. d6+ {[%emt 0:00:09]} Kd7 {[%emt 0:00:00]} 18. Qc7+ {[%emt 0:00:02]} Ke8 {[%emt 0:00:00]} 19. d7+ {[%emt 0:00:05]} Ke7 {[%emt 0:00:00] Check Result:?ev?} 20. d8=Q# {[%emt 0:00:10]} *